[Event "Rapid del Mercoledì"]
[Site "Chess.com"]
[Date "2020.04.29"]
[Round "2"]
[White "Luca090267"]
[Black "pedrak"]
[Result "0-1"]
[WhiteElo "1424"]
[BlackElo "1661"]
[TimeControl "720+3"]
[EndTime "12:06:08 PDT"]
[Termination "pedrak ha vinto per scaccomatto"]

1. e4 {[%clk 0:12:02.9]} 1... d6 {[%clk 0:12:00.7]} 2. d4 {[%clk 0:12:01.3]}
2... Nf6 {[%clk 0:12:01.7]} 3. Nc3 {[%clk 0:11:54]} 3... g6 {[%clk 0:12:01.1]}
4. Nf3 {[%clk 0:11:53.3]} 4... Bg7 {[%clk 0:12:02.3]} 5. Be2 {[%clk 0:11:44.6]}
5... O-O {[%clk 0:12:02.7]} 6. O-O {[%clk 0:11:45.6]} 6... Nbd7 {[%clk
0:11:58.4]} 7. h3 {[%clk 0:11:39.6]} 7... e5 {[%clk 0:11:59.5]} 8. d5 {[%clk
0:11:31.9]} 8... a5 {[%clk 0:11:59.1]} 9. Nd2 {[%clk 0:11:23.9]} 9... Nc5 {[%clk
0:11:57.2]} 10. f3 {[%clk 0:11:21.6]} 10... h6 {[%clk 0:11:56]} 11. Nb3 {[%clk
0:11:14.2]} 11... b6 {[%clk 0:11:54.3]} 12. Nxc5 {[%clk 0:11:14.9]} 12... bxc5
{[%clk 0:11:55.7]} 13. Be3 {[%clk 0:11:07.6]} 13... Kh7 {[%clk 0:11:55.7]} 14.
Qd2 {[%clk 0:10:53.8]} 14... Nh5 {[%clk 0:11:53.3]} 15. Bf2 {[%clk 0:10:11.3]}
15... f5 {[%clk 0:11:53.4]} 16. Nd1 {[%clk 0:09:58.8]} 16... f4 {[%clk
0:11:53.5]} 17. Kh2 {[%clk 0:09:52.2]} 17... Bf6 {[%clk 0:11:53.6]} 18. Bb5
{[%clk 0:09:33.9]} 18... Bh4 {[%clk 0:11:49.7]} 19. Bxh4 {[%clk 0:09:14.3]}
19... Qxh4 {[%clk 0:11:50.1]} 20. Qf2 {[%clk 0:09:14.2]} 20... Ng3 {[%clk
0:11:50.8]} 21. Re1 {[%clk 0:09:10.6]} 21... g5 {[%clk 0:11:38.2]} 22. Bc6
{[%clk 0:08:59.7]} 22... Rb8 {[%clk 0:11:38.4]} 23. b3 {[%clk 0:09:01.2]} 23...
g4 {[%clk 0:11:38.4]} 24. Nc3 {[%clk 0:08:39.7]} 24... gxh3 {[%clk 0:11:37.9]}
25. Kg1 {[%clk 0:08:08.4]} 25... h2# {[%clk 0:11:34.4]} 0-1

[Event "Rapid del Mercoledì"]
[Site "Chess.com"]
[Date "2020.04.29"]
[Round "2"]
[White "laremaro"]
[Black "riccardocanossa"]
[Result "1-0"]
[WhiteElo "1599"]
[BlackElo "858"]
[TimeControl "720+3"]
[EndTime "12:06:26 PDT"]
[Termination "laremaro ha vinto per scaccomatto"]

1. e4 {[%clk 0:12:02.9]} 1... e5 {[%clk 0:11:55.7]} 2. Nf3 {[%clk 0:11:25.5]}
2... Nc6 {[%clk 0:11:56.7]} 3. Bb5 {[%clk 0:11:13.6]} 3... a6 {[%clk 0:11:56.9]}
4. Ba4 {[%clk 0:11:12.8]} 4... Nf6 {[%clk 0:11:49.5]} 5. d3 {[%clk 0:11:11.4]}
5... b5 {[%clk 0:11:48.6]} 6. Bb3 {[%clk 0:11:11.5]} 6... Bc5 {[%clk 0:11:48.6]}
7. O-O {[%clk 0:11:05.1]} 7... O-O {[%clk 0:11:47.6]} 8. Nxe5 {[%clk 0:11:03.7]}
8... Nxe5 {[%clk 0:11:43]} 9. d4 {[%clk 0:11:05.8]} 9... Bxd4 {[%clk 0:11:44.5]}
10. Qxd4 {[%clk 0:11:07]} 10... Nc6 {[%clk 0:11:43]} 11. Qd3 {[%clk 0:11:01.9]}
11... d6 {[%clk 0:11:34]} 12. Bg5 {[%clk 0:11:02]} 12... h6 {[%clk 0:11:29.8]}
13. Bh4 {[%clk 0:11:01.4]} 13... Re8 {[%clk 0:11:18.7]} 14. Nc3 {[%clk
0:11:01.7]} 14... Bb7 {[%clk 0:10:17.1]} 15. Nd5 {[%clk 0:10:54.8]} 15... Ne5
{[%clk 0:09:39.4]} 16. Nxf6+ {[%clk 0:10:48.7]} 16... gxf6 {[%clk 0:09:36.2]}
17. Qg3+ {[%clk 0:10:36.3]} 17... Ng6 {[%clk 0:09:01.4]} 18. Qxg6+ {[%clk
0:09:59]} 18... Kf8 {[%clk 0:08:46.1]} 19. Qxf7# {[%clk 0:09:57.4]} 1-0

[Event "Rapid del Mercoledì"]
[Site "Chess.com"]
[Date "2020.04.29"]
[Round "2"]
[White "Carbon"]
[Black "crippo"]
[Result "0-1"]
[WhiteElo "1757"]
[BlackElo "1509"]
[TimeControl "720+3"]
[EndTime "12:20:31 PDT"]
[Termination "crippo ha vinto per abbandono"]

1. e4 {[%clk 0:12:02.2]} 1... e5 {[%clk 0:12:00.5]} 2. Nf3 {[%clk 0:12:03.3]}
2... Nc6 {[%clk 0:11:58.7]} 3. Bb5 {[%clk 0:12:04.5]} 3... d6 {[%clk 0:12:00]}
4. Bxc6+ {[%clk 0:12:04.8]} 4... bxc6 {[%clk 0:12:00.1]} 5. d4 {[%clk
0:12:06.5]} 5... exd4 {[%clk 0:11:57.9]} 6. Nxd4 {[%clk 0:11:58]} 6... c5 {[%clk
0:11:59.8]} 7. Nc6 {[%clk 0:11:07.3]} 7... Qd7 {[%clk 0:11:50.7]} 8. Na5 {[%clk
0:11:06.4]} 8... Nf6 {[%clk 0:11:47.9]} 9. O-O {[%clk 0:10:59.3]} 9... Be7
{[%clk 0:11:43.6]} 10. Re1 {[%clk 0:10:56.5]} 10... O-O {[%clk 0:11:42.9]} 11.
b3 {[%clk 0:10:57.7]} 11... Ng4 {[%clk 0:11:43.4]} 12. Bb2 {[%clk 0:10:51.8]}
12... Bh4 {[%clk 0:11:43.7]} 13. Re2 {[%clk 0:10:27.3]} 13... Qe6 {[%clk
0:11:15.7]} 14. h3 {[%clk 0:10:04.4]} 14... Ne5 {[%clk 0:11:15.7]} 15. f4 {[%clk
0:09:53]} 15... Nd7 {[%clk 0:10:53.9]} 16. Nd2 {[%clk 0:09:38.9]} 16... Bg3
{[%clk 0:10:43.7]} 17. f5 {[%clk 0:09:32.8]} 17... Qh6 {[%clk 0:10:41.8]} 18.
Nf3 {[%clk 0:09:26.9]} 18... Ba6 {[%clk 0:10:20.3]} 19. Nc4 {[%clk 0:09:21.5]}
19... Rae8 {[%clk 0:10:13.1]} 20. Nh2 {[%clk 0:08:46.7]} 20... Bxc4 {[%clk
0:10:11.4]} 21. bxc4 {[%clk 0:08:46.2]} 21... Ne5 {[%clk 0:10:11.7]} 22. Bxe5
{[%clk 0:08:45]} 22... Bxe5 {[%clk 0:10:12.3]} 23. Ng4 {[%clk 0:08:46.2]} 23...
Qg5 {[%clk 0:09:53.3]} 24. Nxe5 {[%clk 0:08:43.4]} 24... Rxe5 {[%clk 0:09:53.9]}
25. Rb1 {[%clk 0:08:42.3]} 25... Rfe8 {[%clk 0:09:46.2]} 26. Rb7 {[%clk
0:08:42.5]} 26... Qf4 {[%clk 0:09:24.8]} 27. Qd3 {[%clk 0:08:25.3]} 27... h6
{[%clk 0:09:10.3]} 28. Rxc7 {[%clk 0:08:08.4]} 28... Rxe4 {[%clk 0:09:12]} 29.
Rxe4 {[%clk 0:07:56.3]} 29... Rxe4 {[%clk 0:09:12.8]} 30. Rc8+ {[%clk
0:07:54.1]} 30... Kh7 {[%clk 0:09:12.7]} 31. f6 {[%clk 0:07:55.5]} 31... g6
{[%clk 0:09:14.8]} 32. Qf1 {[%clk 0:06:38.9]} 32... Qe5 {[%clk 0:08:19.3]} 33.
Qd3 {[%clk 0:05:46.9]} 33... Qa1+ {[%clk 0:08:07.2]} 34. Kh2 {[%clk 0:05:38.6]}
34... Qe5+ {[%clk 0:07:54.7]} 35. Qg3 {[%clk 0:05:34.9]} 35... Qxf6 {[%clk
0:07:50.1]} 36. Rc7 {[%clk 0:05:21]} 36... a5 {[%clk 0:07:21.7]} 37. Rd7 {[%clk
0:04:44.8]} 37... Re6 {[%clk 0:07:08.1]} 38. Qf3 {[%clk 0:04:32]} 38... Qe5+
{[%clk 0:06:57.2]} 39. Qg3 {[%clk 0:04:32.5]} 39... Qxg3+ {[%clk 0:06:42.4]} 40.
Kxg3 {[%clk 0:04:33.8]} 40... Kg7 {[%clk 0:06:40.2]} 41. Ra7 {[%clk 0:04:34.8]}
41... Re4 {[%clk 0:06:40.5]} 42. Rxa5 {[%clk 0:04:35.8]} 42... Rxc4 {[%clk
0:06:42.5]} 43. a4 {[%clk 0:04:30.8]} 43... Rxc2 {[%clk 0:06:44.3]} 44. Ra6
{[%clk 0:04:31.1]} 44... d5 {[%clk 0:06:46.3]} 45. a5 {[%clk 0:04:27.1]} 45...
d4 {[%clk 0:06:48.4]} 46. Rc6 {[%clk 0:04:27.4]} 46... d3 {[%clk 0:06:48]} 47.
a6 {[%clk 0:04:27.5]} 47... d2 {[%clk 0:06:47]} 48. Rd6 {[%clk 0:04:28.6]} 48...
Ra2 {[%clk 0:06:47.7]} 49. a7 {[%clk 0:04:29.6]} 49... d1=Q {[%clk 0:06:47]} 50.
Rxd1 {[%clk 0:04:30.4]} 50... Rxa7 {[%clk 0:06:48]} 51. Rc1 {[%clk 0:04:28.6]}
51... Rc7 {[%clk 0:06:49.2]} 52. Rc4 {[%clk 0:04:29.6]} 52... Rc6 {[%clk
0:06:50.2]} 53. Kf4 {[%clk 0:04:30.3]} 53... f6 {[%clk 0:06:51.7]} 54. Ke4
{[%clk 0:04:31.5]} 54... Kf7 {[%clk 0:06:53.4]} 55. Kd5 {[%clk 0:04:33.2]} 55...
Rc8 {[%clk 0:06:54.9]} 56. Ra4 {[%clk 0:04:26.4]} 56... g5 {[%clk 0:06:56.1]}
57. Rc4 {[%clk 0:04:23.6]} 57... Kg6 {[%clk 0:06:56.9]} 58. Ke6 {[%clk 0:04:25]}
58... h5 {[%clk 0:06:57]} 59. g4 {[%clk 0:04:25.3]} 59... hxg4 {[%clk
0:06:57.1]} 60. hxg4 {[%clk 0:04:27.2]} 60... Re8+ {[%clk 0:06:47.2]} 61. Kd6
{[%clk 0:04:21.7]} 61... Re5 {[%clk 0:06:48.9]} 62. Rc1 {[%clk 0:04:07.8]} 62...
Re4 {[%clk 0:06:50]} 63. Rxc5 {[%clk 0:04:07.3]} 63... Rxg4 {[%clk 0:06:51.2]}
64. Rc8 {[%clk 0:04:06.6]} 64... Re4 {[%clk 0:06:50.1]} 65. Kd5 {[%clk
0:04:08.2]} 65... Kf5 {[%clk 0:06:50.8]} 66. Rg8 {[%clk 0:04:05.2]} 66... Re5+
{[%clk 0:06:52.4]} 67. Kd4 {[%clk 0:04:06.5]} 67... g4 {[%clk 0:06:54.1]} 68.
Rg7 {[%clk 0:04:05.9]} 68... Kf4 {[%clk 0:06:53.6]} 69. Rg6 {[%clk 0:04:05.3]}
69... Re4+ {[%clk 0:06:54.6]} 70. Kd3 {[%clk 0:04:05.9]} 70... f5 {[%clk
0:06:56.7]} 71. Kd2 {[%clk 0:04:05.3]} 71... g3 {[%clk 0:06:58.3]} 72. Kd3
{[%clk 0:04:02.8]} 72... Kf3 {[%clk 0:06:58.1]} 73. Rg5 {[%clk 0:04:03.1]} 73...
Re3+ {[%clk 0:06:59.3]} 74. Kd2 {[%clk 0:04:04.7]} 74... f4 {[%clk 0:07:01.3]}
75. Rg6 {[%clk 0:04:06]} 75... g2 {[%clk 0:07:02.4]} 0-1

[Event "Rapid del Mercoledì"]
[Site "Chess.com"]
[Date "2020.04.29"]
[Round "2"]
[White "fausto2p"]
[Black "OMatteoWuO"]
[Result "1-0"]
[WhiteElo "1063"]
[BlackElo "1169"]
[TimeControl "720+3"]
[EndTime "12:22:15 PDT"]
[Termination "fausto2p ha vinto per abbandono"]

1. d4 {[%clk 0:12:01.6]} 1... Nf6 {[%clk 0:11:58.9]} 2. c4 {[%clk 0:12:01]} 2...
g6 {[%clk 0:11:59.4]} 3. Nc3 {[%clk 0:12:01.4]} 3... Bg7 {[%clk 0:11:56.9]} 4.
e4 {[%clk 0:12:02.7]} 4... d6 {[%clk 0:11:56]} 5. f3 {[%clk 0:12:00.1]} 5... O-O
{[%clk 0:11:47]} 6. Be3 {[%clk 0:12:00.8]} 6... Nbd7 {[%clk 0:11:36.9]} 7. Nge2
{[%clk 0:11:53.3]} 7... e5 {[%clk 0:11:33.8]} 8. d5 {[%clk 0:11:54]} 8... Nh5
{[%clk 0:11:23.8]} 9. g4 {[%clk 0:11:51.6]} 9... Nf4 {[%clk 0:11:02.3]} 10. Nxf4
{[%clk 0:11:51.8]} 10... exf4 {[%clk 0:11:03.3]} 11. Bxf4 {[%clk 0:11:53.3]}
11... Bxc3+ {[%clk 0:10:58.1]} 12. bxc3 {[%clk 0:11:52.6]} 12... Qf6 {[%clk
0:10:59.3]} 13. Bh6 {[%clk 0:11:26.9]} 13... Qxc3+ {[%clk 0:10:48.9]} 14. Kf2
{[%clk 0:11:16.6]} 14... Re8 {[%clk 0:10:41.8]} 15. h4 {[%clk 0:10:58.3]} 15...
Ne5 {[%clk 0:10:18.5]} 16. Be2 {[%clk 0:10:37.4]} 16... Nxc4 {[%clk 0:09:29.3]}
17. Bxc4 {[%clk 0:10:31.1]} 17... Qxc4 {[%clk 0:09:29.9]} 18. h5 {[%clk
0:10:17.6]} 18... Qc5+ {[%clk 0:08:54.2]} 19. Be3 {[%clk 0:10:15.3]} 19... Qc3
{[%clk 0:08:31.8]} 20. Rc1 {[%clk 0:10:08.1]} 20... Qb2+ {[%clk 0:08:23.4]} 21.
Rc2 {[%clk 0:10:07]} 21... Qe5 {[%clk 0:08:18.5]} 22. Bd4 {[%clk 0:10:01.4]}
22... Qg5 {[%clk 0:08:05.9]} 23. Be3 {[%clk 0:09:59.7]} 23... Qe7 {[%clk
0:07:54.9]} 24. hxg6 {[%clk 0:09:56.9]} 24... fxg6 {[%clk 0:07:55.9]} 25. Qc1
{[%clk 0:08:59.7]} 25... Bd7 {[%clk 0:07:09.3]} 26. Rxc7 {[%clk 0:08:55.9]}
26... Rac8 {[%clk 0:07:09.6]} 27. Rxc8 {[%clk 0:07:49.5]} 27... Rxc8 {[%clk
0:07:10.4]} 28. Qd2 {[%clk 0:07:46.2]} 28... b6 {[%clk 0:07:05.8]} 29. Bg5
{[%clk 0:07:23.5]} 29... Qf7 {[%clk 0:06:53.4]} 30. Kg3 {[%clk 0:06:59]} 30...
Ba4 {[%clk 0:05:47.2]} 31. Qb4 {[%clk 0:06:31.1]} 31... Qd7 {[%clk 0:05:39.5]}
32. Bf4 {[%clk 0:05:10.2]} 32... Rc5 {[%clk 0:05:05.7]} 33. Be3 {[%clk
0:04:46.1]} 33... Rc2 {[%clk 0:04:44.5]} 34. a3 {[%clk 0:04:27.3]} 34... b5
{[%clk 0:03:56.2]} 35. Bf4 {[%clk 0:03:57.8]} 35... Rc4 {[%clk 0:03:36.2]} 36.
Qxd6 {[%clk 0:03:57.4]} 36... Qf7 {[%clk 0:03:19.2]} 37. Qb8+ {[%clk 0:03:31.3]}
37... Qf8 {[%clk 0:03:11.8]} 38. Qxf8+ {[%clk 0:03:30]} 38... Kxf8 {[%clk
0:03:13.5]} 39. Bd6+ {[%clk 0:03:31.2]} 39... Kf7 {[%clk 0:03:13.9]} 40. Bb4
{[%clk 0:03:31.7]} 40... Kg7 {[%clk 0:02:58.5]} 41. Re1 {[%clk 0:03:17]} 41...
Rd4 {[%clk 0:02:30.7]} 42. Bc3 {[%clk 0:02:58.5]} 1-0

[Event "Rapid del Mercoledì"]
[Site "Chess.com"]
[Date "2020.04.29"]
[Round "2"]
[White "Mrtre7"]
[Black "sirmale49"]
[Result "1-0"]
[WhiteElo "1324"]
[BlackElo "1408"]
[TimeControl "720+3"]
[EndTime "12:28:33 PDT"]
[Termination "Mrtre7 ha vinto per tempo"]

1. d4 {[%clk 0:12:02.9]} 1... d5 {[%clk 0:11:56.9]} 2. c4 {[%clk 0:12:04.3]}
2... e5 {[%clk 0:11:56.2]} 3. dxe5 {[%clk 0:12:02.6]} 3... d4 {[%clk 0:11:55.7]}
4. Nf3 {[%clk 0:12:04.4]} 4... Nc6 {[%clk 0:11:56]} 5. Nbd2 {[%clk 0:11:59.7]}
5... Bb4 {[%clk 0:11:28.4]} 6. a3 {[%clk 0:11:38.6]} 6... Be7 {[%clk 0:11:00.4]}
7. Nb3 {[%clk 0:11:17]} 7... Bg4 {[%clk 0:10:33.1]} 8. Bf4 {[%clk 0:10:22.6]}
8... Bxf3 {[%clk 0:10:28.8]} 9. exf3 {[%clk 0:10:24.4]} 9... g5 {[%clk
0:10:26.4]} 10. Bg3 {[%clk 0:10:21.5]} 10... Nh6 {[%clk 0:10:14.4]} 11. Bd3
{[%clk 0:10:03.3]} 11... Qd7 {[%clk 0:10:05.2]} 12. O-O {[%clk 0:09:49.7]} 12...
Nf5 {[%clk 0:10:06]} 13. Bxf5 {[%clk 0:09:43.6]} 13... Qxf5 {[%clk 0:10:01.6]}
14. Nxd4 {[%clk 0:09:39.2]} 14... Nxd4 {[%clk 0:09:58.1]} 15. Qxd4 {[%clk
0:09:39.6]} 15... c5 {[%clk 0:09:37.7]} 16. Qd5 {[%clk 0:09:09.5]} 16... Qd7
{[%clk 0:09:15.3]} 17. Rfe1 {[%clk 0:08:24.9]} 17... Rd8 {[%clk 0:09:11.9]} 18.
Qxd7+ {[%clk 0:08:18.7]} 18... Rxd7 {[%clk 0:09:09.2]} 19. e6 {[%clk 0:07:38.3]}
19... fxe6 {[%clk 0:09:01.4]} 20. Rxe6 {[%clk 0:07:39.9]} 20... O-O {[%clk
0:08:49]} 21. Rae1 {[%clk 0:07:30.3]} 21... Re8 {[%clk 0:07:59.1]} 22. h3 {[%clk
0:07:30]} 22... Kf7 {[%clk 0:07:52.6]} 23. Rh6 {[%clk 0:07:20.2]} 23... Kg7
{[%clk 0:07:51]} 24. Ree6 {[%clk 0:07:18.3]} 24... Rd1+ {[%clk 0:07:44.9]} 25.
Kh2 {[%clk 0:07:18.3]} 25... Rdd8 {[%clk 0:07:28.8]} 26. f4 {[%clk 0:06:51.1]}
26... gxf4 {[%clk 0:06:26]} 27. Bxf4 {[%clk 0:06:51.4]} 27... b6 {[%clk
0:05:52.3]} 28. Rh5 {[%clk 0:06:10.1]} 28... Rd7 {[%clk 0:05:10.7]} 29. Be5+
{[%clk 0:05:44]} 29... Kg8 {[%clk 0:05:01.2]} 30. Bf4 {[%clk 0:03:42.5]} 30...
Kf7 {[%clk 0:04:56.8]} 31. Rhe5 {[%clk 0:03:40.6]} 31... Rdd8 {[%clk 0:04:16.5]}
32. g4 {[%clk 0:03:40.6]} 32... Rd7 {[%clk 0:03:31.4]} 33. g5 {[%clk 0:03:32.4]}
33... Rd4 {[%clk 0:03:31.4]} 34. Kg3 {[%clk 0:03:32.2]} 34... Rxc4 {[%clk
0:02:42.7]} 35. h4 {[%clk 0:03:08.5]} 35... Rd4 {[%clk 0:02:36.3]} 36. h5 {[%clk
0:02:58.7]} 36... Rd7 {[%clk 0:02:32.4]} 37. g6+ {[%clk 0:02:38.4]} 37... hxg6
{[%clk 0:02:31.8]} 38. hxg6+ {[%clk 0:01:37.5]} 38... Kg7 {[%clk 0:02:19.4]} 39.
Bg5 {[%clk 0:01:35.9]} 39... Rd3+ {[%clk 0:01:56]} 40. Kg2 {[%clk 0:01:25.6]}
40... Rd7 {[%clk 0:01:37.2]} 41. f4 {[%clk 0:01:10.2]} 41... Rd2+ {[%clk
0:01:30.7]} 42. Kg3 {[%clk 0:01:11.3]} 42... Rd3+ {[%clk 0:01:23.3]} 43. Kg4
{[%clk 0:01:13]} 43... Rd7 {[%clk 0:01:08.9]} 44. f5 {[%clk 0:01:11.2]} 44...
Rd4+ {[%clk 0:01:04.6]} 45. Kf3 {[%clk 0:01:04.8]} 45... Rd7 {[%clk 0:00:31]}
46. Rxe7+ {[%clk 0:00:56]} 46... Rexe7 {[%clk 0:00:22.8]} 47. Bxe7 {[%clk
0:00:52.5]} 47... Rd2 {[%clk 0:00:07]} 48. Ke4 {[%clk 0:00:48.2]} 48... Rxb2
{[%clk 0:00:03.9]} 49. f6+ {[%clk 0:00:46.3]} 49... Kxg6 {[%clk 0:00:03.3]} 50.
Kd5 {[%clk 0:00:39.9]} 50... Rd2+ {[%clk 0:00:04.4]} 51. Ke6 {[%clk 0:00:41.7]}
1-0

[Event "Rapid del Mercoledì"]
[Site "Chess.com"]
[Date "2020.04.29"]
[Round "3"]
[White "pedrak"]
[Black "crippo"]
[Result "1-0"]
[WhiteElo "1676"]
[BlackElo "1493"]
[TimeControl "720+3"]
[EndTime "12:38:53 PDT"]
[Termination "pedrak ha vinto per scaccomatto"]

1. Nf3 {[%clk 0:12:02.9]} 1... Nc6 {[%clk 0:11:57]} 2. g3 {[%clk 0:12:03.7]}
2... e5 {[%clk 0:11:58.2]} 3. d3 {[%clk 0:12:05]} 3... Nf6 {[%clk 0:12:00]} 4.
Bg2 {[%clk 0:12:06.6]} 4... d5 {[%clk 0:12:02]} 5. O-O {[%clk 0:12:07.8]} 5...
Bd6 {[%clk 0:12:02.7]} 6. Nbd2 {[%clk 0:12:09]} 6... Bg4 {[%clk 0:12:03.5]} 7.
h3 {[%clk 0:12:08.8]} 7... Bh5 {[%clk 0:12:05.1]} 8. e4 {[%clk 0:12:09.2]} 8...
dxe4 {[%clk 0:12:01.2]} 9. dxe4 {[%clk 0:12:10.4]} 9... O-O {[%clk 0:12:01.6]}
10. c3 {[%clk 0:12:11.1]} 10... Nd7 {[%clk 0:11:58.7]} 11. Qc2 {[%clk
0:12:12.4]} 11... Bg6 {[%clk 0:11:58.1]} 12. Re1 {[%clk 0:12:13]} 12... Ne7
{[%clk 0:11:53.9]} 13. Nh4 {[%clk 0:12:14]} 13... Kh8 {[%clk 0:11:54.2]} 14.
Nxg6+ {[%clk 0:12:14.8]} 14... Nxg6 {[%clk 0:11:55.4]} 15. Nf1 {[%clk
0:12:08.3]} 15... Qe7 {[%clk 0:11:29.8]} 16. Be3 {[%clk 0:12:08.4]} 16... Bc5
{[%clk 0:11:23.7]} 17. Rad1 {[%clk 0:12:08.3]} 17... Rad8 {[%clk 0:11:15.2]} 18.
b4 {[%clk 0:12:07.3]} 18... Bxe3 {[%clk 0:11:05.9]} 19. Nxe3 {[%clk 0:12:08.6]}
19... Nb6 {[%clk 0:11:05.7]} 20. a3 {[%clk 0:11:43]} 20... Rxd1 {[%clk
0:11:04.5]} 21. Rxd1 {[%clk 0:11:43.7]} 21... Rd8 {[%clk 0:11:04.3]} 22. Rxd8+
{[%clk 0:11:40]} 22... Qxd8 {[%clk 0:11:05.8]} 23. c4 {[%clk 0:11:41.7]} 23...
f6 {[%clk 0:11:03.5]} 24. c5 {[%clk 0:11:35.1]} 24... Nc8 {[%clk 0:11:04]} 25.
Nd5 {[%clk 0:11:36.4]} 25... c6 {[%clk 0:11:02.7]} 26. Ne3 {[%clk 0:11:36.3]}
26... Nge7 {[%clk 0:11:03.3]} 27. h4 {[%clk 0:11:34.1]} 27... h6 {[%clk
0:10:58.5]} 28. Bh3 {[%clk 0:11:35.4]} 28... g6 {[%clk 0:10:41.1]} 29. Qc4
{[%clk 0:11:32.8]} 29... Kg7 {[%clk 0:10:07.5]} 30. Qe6 {[%clk 0:10:46.8]} 30...
b6 {[%clk 0:09:56]} 31. Nc4 {[%clk 0:10:24.9]} 31... bxc5 {[%clk 0:09:38.9]} 32.
bxc5 {[%clk 0:10:26.1]} 32... Qd1+ {[%clk 0:09:25.2]} 33. Kg2 {[%clk 0:10:23.2]}
33... Qd4 {[%clk 0:09:26.3]} 34. Nd6 {[%clk 0:10:23.8]} 34... Nxd6 {[%clk
0:08:19.8]} 35. Qxe7+ {[%clk 0:10:24.6]} 35... Nf7 {[%clk 0:08:19.6]} 36. Be6
{[%clk 0:10:24.4]} 36... Qxe4+ {[%clk 0:08:19.9]} 37. Kh2 {[%clk 0:10:25.8]}
37... h5 {[%clk 0:07:51.4]} 38. Qxf7+ {[%clk 0:10:20.8]} 38... Kh6 {[%clk
0:07:53.3]} 39. Qf8+ {[%clk 0:10:22.5]} 39... Kh7 {[%clk 0:07:54.5]} 40. Qg8+
{[%clk 0:10:22]} 40... Kh6 {[%clk 0:07:56.5]} 41. Qh8# {[%clk 0:10:23.7]} 1-0

[Event "Rapid del Mercoledì"]
[Site "Chess.com"]
[Date "2020.04.29"]
[Round "3"]
[White "sirmale49"]
[Black "ottovolante"]
[Result "0-1"]
[WhiteElo "1390"]
[BlackElo "1014"]
[TimeControl "720+3"]
[EndTime "12:39:00 PDT"]
[Termination "ottovolante ha vinto per abbandono"]

1. e4 {[%clk 0:12:02.9]} 1... d6 {[%clk 0:12:00.1]} 2. f4 {[%clk 0:12:04.2]}
2... e5 {[%clk 0:11:58]} 3. Nf3 {[%clk 0:12:03.8]} 3... Bg4 {[%clk 0:11:47.3]}
4. Nc3 {[%clk 0:11:58.2]} 4... c6 {[%clk 0:11:41.8]} 5. f5 {[%clk 0:11:58.3]}
5... Nf6 {[%clk 0:11:36.6]} 6. d3 {[%clk 0:11:55.5]} 6... h6 {[%clk 0:11:07.5]}
7. h3 {[%clk 0:11:56.4]} 7... Bxf3 {[%clk 0:11:05.6]} 8. Qxf3 {[%clk 0:11:56.4]}
8... Qd7 {[%clk 0:10:16.1]} 9. g4 {[%clk 0:11:50.3]} 9... Be7 {[%clk 0:09:44.5]}
10. Be3 {[%clk 0:11:45]} 10... Bd8 {[%clk 0:09:43.7]} 11. Be2 {[%clk 0:11:38.2]}
11... Bb6 {[%clk 0:09:31.8]} 12. Bxb6 {[%clk 0:11:16.4]} 12... axb6 {[%clk
0:09:31.9]} 13. a3 {[%clk 0:11:17.4]} 13... Na6 {[%clk 0:09:22.8]} 14. Qf2
{[%clk 0:11:12.6]} 14... Qc7 {[%clk 0:09:22.9]} 15. d4 {[%clk 0:11:08.6]} 15...
O-O-O {[%clk 0:08:39.2]} 16. Bxa6 {[%clk 0:11:02.9]} 16... bxa6 {[%clk
0:08:38.2]} 17. O-O-O {[%clk 0:10:59.8]} 17... Rhe8 {[%clk 0:08:19.5]} 18. Rd3
{[%clk 0:10:29.2]} 18... exd4 {[%clk 0:06:08.8]} 19. Qe3 {[%clk 0:10:04.1]}
19... dxe3 {[%clk 0:06:07.9]} 0-1

[Event "Rapid del Mercoledì"]
[Site "Chess.com"]
[Date "2020.04.29"]
[Round "3"]
[White "laremaro"]
[Black "Carbon"]
[Result "1/2-1/2"]
[WhiteElo "1634"]
[BlackElo "1752"]
[TimeControl "720+3"]
[EndTime "12:45:25 PDT"]
[Termination "Partita patta per ripetizione di mosse"]

1. e4 {[%clk 0:12:02.9]} 1... e6 {[%clk 0:12:00.3]} 2. d4 {[%clk 0:12:02.2]}
2... d5 {[%clk 0:12:01.9]} 3. exd5 {[%clk 0:12:03.6]} 3... exd5 {[%clk
0:12:02.9]} 4. Nf3 {[%clk 0:12:05.9]} 4... Bg4 {[%clk 0:12:01.3]} 5. Bd3 {[%clk
0:12:04.3]} 5... Nf6 {[%clk 0:12:01.8]} 6. O-O {[%clk 0:12:00.6]} 6... Be7
{[%clk 0:12:02.2]} 7. Bg5 {[%clk 0:12:00.3]} 7... O-O {[%clk 0:12:03.9]} 8. Nbd2
{[%clk 0:11:56.6]} 8... Nbd7 {[%clk 0:11:58]} 9. c3 {[%clk 0:11:57.6]} 9... c6
{[%clk 0:11:58.2]} 10. Qc2 {[%clk 0:11:50.3]} 10... Re8 {[%clk 0:10:57.7]} 11.
Rae1 {[%clk 0:11:43.6]} 11... Nf8 {[%clk 0:10:01.2]} 12. Ne5 {[%clk 0:11:38.9]}
12... Bh5 {[%clk 0:09:52.2]} 13. Re3 {[%clk 0:10:28.2]} 13... Ne6 {[%clk
0:09:49.9]} 14. Bh4 {[%clk 0:10:08.8]} 14... Nf4 {[%clk 0:09:35.6]} 15. Bg3
{[%clk 0:10:03.5]} 15... Nxd3 {[%clk 0:09:32.3]} 16. Qxd3 {[%clk 0:10:03.1]}
16... Ng4 {[%clk 0:09:11.5]} 17. Nxg4 {[%clk 0:09:55.2]} 17... Bxg4 {[%clk
0:09:14.4]} 18. Rfe1 {[%clk 0:09:44.8]} 18... Qd7 {[%clk 0:09:06.8]} 19. Nf3
{[%clk 0:09:21]} 19... Bxf3 {[%clk 0:08:58.2]} 20. Rxf3 {[%clk 0:09:18.7]} 20...
Bg5 {[%clk 0:08:13.5]} 21. Rxe8+ {[%clk 0:08:58.8]} 21... Rxe8 {[%clk
0:08:14.8]} 22. Qd1 {[%clk 0:08:24.4]} 22... Qe6 {[%clk 0:07:46.4]} 23. h4
{[%clk 0:08:23.5]} 23... Qe1+ {[%clk 0:07:37.8]} 24. Qxe1 {[%clk 0:08:16.3]}
24... Rxe1+ {[%clk 0:07:40.7]} 25. Kh2 {[%clk 0:08:17.7]} 25... Bf6 {[%clk
0:07:38.2]} 26. Re3 {[%clk 0:08:06.6]} 26... Rxe3 {[%clk 0:07:34.8]} 27. fxe3
{[%clk 0:08:08.4]} 27... Kf8 {[%clk 0:07:36.4]} 28. Kh3 {[%clk 0:08:08.4]} 28...
Ke8 {[%clk 0:07:36.7]} 29. Kg4 {[%clk 0:08:10.8]} 29... Kd7 {[%clk 0:07:29.7]}
30. Kf5 {[%clk 0:08:07.7]} 30... Ke7 {[%clk 0:07:12.3]} 31. h5 {[%clk
0:08:06.4]} 31... g6+ {[%clk 0:07:05.6]} 32. hxg6 {[%clk 0:08:07.5]} 32... hxg6+
{[%clk 0:07:07.4]} 33. Kf4 {[%clk 0:08:02.1]} 33... Ke6 {[%clk 0:07:09.1]} 34.
e4 {[%clk 0:07:57.7]} 34... dxe4 {[%clk 0:07:04.6]} 35. Kxe4 {[%clk 0:07:59.4]}
35... Bg5 {[%clk 0:07:04.2]} 36. b3 {[%clk 0:07:54.9]} 36... Bd2 {[%clk
0:06:58.8]} 37. c4 {[%clk 0:07:56.3]} 37... f5+ {[%clk 0:06:55.4]} 38. Kf3
{[%clk 0:07:23.3]} 38... g5 {[%clk 0:06:50.3]} 39. Bb8 {[%clk 0:07:10]} 39... a6
{[%clk 0:06:50.5]} 40. g4 {[%clk 0:07:10.5]} 40... Bc3 {[%clk 0:06:06.3]} 41.
Ba7 {[%clk 0:07:02.8]} 41... Bb2 {[%clk 0:05:35.3]} 42. Bc5 {[%clk 0:07:01.5]}
42... Bc3 {[%clk 0:05:33.7]} 43. Ba7 {[%clk 0:07:01.6]} 43... Bb2 {[%clk
0:05:32.7]} 44. Bc5 {[%clk 0:07:03.2]} 44... Bc3 {[%clk 0:05:16.7]} 45. Ba7
{[%clk 0:07:00.8]} 1/2-1/2